Cogmind - Beta 16.1 @@@ ROGUE MODE // 2026.04.19 @ 01:01:08 Player: Foongus0298 Result: Destroyed by Striker with Plasma Lance Performance ------------- Evolutions (7) 3500 Regions Visited (17) 3400 Robots Destroyed (148) 740 Value Destroyed (6686) 6686 Prototype IDs (19) 380 Alien Tech Used (0) 0 Bonus (5177) 5177 TOTAL SCORE: 19883 Bonus ------- High Alert Combat Kills 655 Follower Combat Kills 2243 Network Hubs Disabled 200 Met Warlord at Base 500 MAIN.C Attacked Warlord 500 Warlord Defense Kills 834 Built Enhanced Grunts 300 Friendly Fire -55 Cogmind --------- Core Integrity 0/1300 Matter 37/300 Energy 90/100 System Corruption 17% Temperature Cool (0) Movement Core (200) Ox3 Location -3/Research Parts ------- > --- POWER (3) -------- (None) > --- PROPULSION (4) --- (None) > --- UTILITY (10) ----- (None) > --- WEAPON (4) ------- Fusion Bomb Launcher > --- INVENTORY (5) ---- Compact Wheel Advanced Cooling System Experimental Coolant Injector Peak State ------------ > --- POWER ------------ Neutrino Core Light Antimatter Reactor Micro Antimatter Reactor > --- PROPULSION ------- Improved Treads Advanced Medium Treads Centrium Heavy Treads > --- UTILITY ---------- Experimental Cooling System Experimental Coolant Injector High-capacity Storage Unit Advanced Energy Well Enhanced Optical Array Advanced Sensor Array Advanced Signal Interpreter Advanced Target Analyzer Improved Medium Armor Plating Advanced Hardlight Generator > --- WEAPON ----------- Phase Gun Phase Gun Precision Phase Gun Neutron Missile Launcher > --- INVENTORY -------- Light Antimatter Reactor Micro Antimatter Reactor Improved Treads Improved Treads Compact Wheel Improved Cooling System Advanced Cooling System Advanced Coolant Injector Experimental Coolant Injector Improved Target Analyzer Disruptor Cannon Heavy Phase Cannon Barrage Gun Coil Gun Coil Gun KE Penetrator KE Penetrator Power Maul [Rating: 147] Favorites ----------- Power Reinforced Deuterium Engine Engine Reinforced Deuterium Engine Power Core Neutrino Core Reactor Antimatter Reactor Propulsion Centrium Heavy Treads Treads Centrium Heavy Treads Wheel Wheel Flight Unit Impulse Thruster Utility Improved Targeting Computer Device Advanced Sensor Array Storage Large Storage Unit Processor Improved Targeting Computer Protection Improved Medium Armor Plating Weapon Cooled Particle Cannon Energy Gun Improved EM Shotgun Energy Cannon Cooled Particle Cannon Ballistic Gun Assault Rifle Launcher Neutron Missile Launcher Impact Weapon Power Maul Build | -11 -10 -9 -9 -8 -7 -6 -6 -6 -6 -6 -5 -5 -5 -5 -4 -4 -3 ------- Run | Yrd Mat Mat Min Mat Fac Fac Ext Cet Arc Hub Fac Upp Upp War Pro Fac Res Slots Evolved 14 | . . 2 . 2 2 2 . . . . 2 . . . . 2 2 Power 2 | . . . . . 1 . . . . . 1 . . . . . . Propulsion 2 | . . . . . . 1 . . . . . . . . . 1 . Utility 8 | . . 1 . 2 1 1 . . . . 1 . . . . 1 1 Weapon 2 | . . 1 . . . . . . . . . . . . . . 1 Parts Attached 137 | 6 . 4 4 5 3 16 6 6 1 19 8 2 . 7 12 24 14 Power 23 | 1 . . 1 . 1 3 3 . 1 3 1 . . 2 1 4 2 Engine 11 | 1 . . 1 . . 3 3 . . . 1 . . . 1 1 . Core 4 | . . . . . 1 . . . 1 . . . . 1 . 1 . Reactor 8 | . . . . . . . . . . 3 . . . 1 . 2 2 Propulsion 22 | 2 . . . 1 . 4 2 3 . 1 . 1 . 2 1 3 2 Treads 19 | 2 . . . . . 4 2 3 . 1 . 1 . 1 1 3 1 Leg . | . . . . . . . . . . . . . . . . . . Wheel 2 | . . . . 1 . . . . . . . . . 1 . . . Hover . | . . . . . . . . . . . . . . . . . . Flight 1 | . . . . . . . . . . . . . . . . . 1 Utility 50 | 1 . 2 2 2 1 4 1 2 . 11 4 . . 1 6 10 3 Device 24 | . . 1 1 . . 1 . 1 . 6 2 . . . 5 5 2 Storage 7 | 1 . 1 . . . . . . . 3 . . . . 1 . 1 Processor 8 | . . . 1 1 1 1 . . . . 2 . . . . 2 . Hackware . | . . . . . . . . . . . . . . . . . . Protection 11 | . . . . 1 . 2 1 1 . 2 . . . 1 . 3 . Artifact . | . . . . . . . . . . . . . . . . . . Weapon 42 | 2 . 2 1 2 1 5 . 1 . 4 3 1 . 2 4 7 7 Energy Gun 12 | . . 1 . 1 . . . . . 2 . . . 2 1 2 3 Energy Cannon 14 | . . . . 1 . 5 . 1 . 2 2 . . . 2 1 . Ballistic Gun 12 | 2 . 1 1 . 1 . . . . . 1 1 . . 1 3 1 Ballistic Cannon . | . . . . . . . . . . . . . . . . . . Launcher 3 | . . . . . . . . . . . . . . . . . 3 Special Weapon . | . . . . . . . . . . . . . . . . . . Impact Weapon 1 | . . . . . . . . . . . . . . . . 1 . Slashing Weapon . | . . . . . . . . . . . . . . . . . . Piercing Weapon . | . . . . . . . . . . . . . . . . . . Special Melee Weapon . | . . . . . . . . . . . . . . . . . . Unidentified Prototypes 19 | . . 1 1 . . 1 . 3 . 6 1 . . 1 . 1 4 Corrupted Parts 5 | . . . . . . . . . . 5 . . . . . . . System Corruption 36 | . . . . . . . . . . 36 . . . . . . . Parts Lost 67 | . . . . 5 . 5 1 1 . 12 . . . 6 15 5 17 Power 14 | . . . . . . . 1 . . 3 . . . 1 4 1 4 Propulsion 11 | . . . . 1 . 2 . 1 . . . . . 1 2 . 4 Utility 18 | . . . . 1 . 1 . . . 3 . . . 3 5 1 4 Weapon 24 | . . . . 3 . 2 . . . 6 . . . 1 4 3 5 Highest Loss Streak 10 | . . . . 4 . 4 1 1 . 10 . . . 4 8 3 10 To Critical Strikes 3 | . . . . 1 . . . 1 . 1 . . . . . . . Average Backups 12 | 2 5 5 8 7 11 13 14 13 13 13 13 12 13 12 8 13 17 Power 1 | . 1 2 2 3 2 2 1 2 2 2 1 1 1 . . . . Propulsion 1 | 1 2 2 2 1 1 1 2 1 1 1 1 1 1 1 . 1 3 Utility 5 | . . . . . 1 4 6 6 5 6 6 7 7 6 2 4 7 Weapon 4 | . 1 1 3 2 6 4 4 4 4 3 5 3 4 4 4 6 6 Tool/Special . | . . . . . . . . . . . . . . . . . . Unused Backups 24 | . . . 2 . . 2 4 2 3 . 1 . . 1 . . 9 Power 6 | . . . 2 . . . 1 1 . . . . . . . . 2 Propulsion 4 | . . . . . . . 1 1 . . . . . . . . 2 Utility 6 | . . . . . . . 1 . 2 . . . . 1 . . 2 Weapon 8 | . . . . . . 2 1 . 1 . 1 . . . . . 3 Tool/Special . | . . . . . . . . . . . . . . . . . . Average Slot Usage (%) 89 | . 85 79 95 88 93 97 100 94 93 91 88 94 94 86 67 76 87 Engine 7 | . 14 11 11 9 7 12 13 13 7 4 5 5 5 4 3 3 1 Core 1 | . . . . . 2 . . . 4 4 . . . . 1 3 3 Reactor 3 | . . . . . . . . . . 2 11 11 11 9 1 . 5 Treads 13 | . 28 20 22 12 7 17 20 14 13 13 11 11 11 9 8 12 12 Device 11 | . . 9 11 11 7 8 6 6 6 12 15 11 11 11 15 12 17 Storage 6 | . 14 11 11 9 7 6 6 6 6 6 5 5 5 5 5 5 8 Processor 18 | . . . 6 17 22 24 26 26 26 20 17 23 23 20 11 13 13 Protection 4 | . . . . 1 7 6 6 6 6 5 5 5 5 4 . 8 3 Energy Gun 3 | . . . . 5 15 6 . . . . . . . 1 2 3 11 Energy Cannon 11 | . . . . . . 10 20 20 20 17 11 17 17 13 8 2 3 Ballistic Gun 4 | . 28 26 33 17 6 2 . . . . . . . . 4 8 1 Peak Build Rating 147 | 6 6 10 20 33 38 58 61 77 79 103 111 102 101 107 98 114 147 Average Rating 76 | 4 6 7 11 23 35 53 58 72 78 83 109 101 101 95 74 86 123 On Entrance 58 | . 6 6 10 13 33 38 58 59 77 79 99 102 101 101 86 71 114 Avg Prop Armor Cover (%) 8 | . . . . 11 7 6 . . . . . . . 12 . . 4 Naked Turns 38 | . . . . . . . . . . . . . . . . . 38 Heaviest Build 124 | 14 14 33 33 45 46 80 78 77 80 94 110 108 108 108 89 113 124 Greatest Support 133 | 40 40 40 40 40 10 74 80 110 110 110 110 110 108 108 103 133 133 Greatest Overweight (x) 14 | . . . . 4 4 4 1 1 . . . . . 4 14 . 3 Average Overweight (x) . | . . . . 1 4 . . . . . . . . . . . . Largest Inventory Capacity 20 | 8 8 15 15 15 15 15 15 15 15 15 15 15 15 15 20 20 20 Average Capacity 15 | 6 8 13 15 15 15 15 15 15 15 15 15 15 15 15 15 17 18 Most Carried 20 | 4 7 7 9 11 14 15 15 15 15 15 15 14 14 15 13 19 20 Average Carried 13 | 3 5 5 8 7 12 14 14 14 14 14 14 13 14 13 8 13 17 Final Capacity 20 | 8 8 15 15 15 15 15 15 15 15 15 15 15 15 15 15 20 5 Final Carried 19 | 4 7 7 9 11 13 15 15 14 15 14 13 14 14 14 8 19 3 Class Distribution -------------------- 45% | Scavenger-Tank 21% | Gunner 12% | Commander-Gunner 7% | Commander-Tank 6% | Mutant 4% | Scavenger-Mutant Dominant Class ---------------- Mutant | -10/Materials Gunner | -9/Materials Gunner | -9/Mines Skirmisher | -8/Materials Gunner | -7/Factory Gunner | -6/Factory Commander-Gunner | -6/Extension Commander-Gunner | -6/Cetus Commander-Gunner | -6/Archives Commander-Tank | -6/Hub_04(d) Scavenger-Tank | -5/Factory Scavenger-Tank | -5/Upper Caves Scavenger-Tank | -5/Upper Caves Scavenger-Tank | -5/Warlord Scavenger-Tank | -4/Proximity Caves Scavenger-Tank | -4/Factory Scavenger-Tank | -3/Research Resources | -11 -10 -9 -9 -8 -7 -6 -6 -6 -6 -6 -5 -5 -5 -5 -4 -4 -3 ----------- Run | Yrd Mat Mat Min Mat Fac Fac Ext Cet Arc Hub Fac Upp Upp War Pro Fac Res Matter Collected 3021 | 240 97 45 175 149 . 232 92 67 28 466 . 122 . 266 165 655 222 Remotely 316 | . . 45 175 96 . . . . . . . . . . . . . Salvage Created 8077 | . 170 45 . 306 154 957 1350 . . 1836 23 . . 241 413 1028 1554 Parts 329 | . 17 4 . 20 8 25 63 . . 65 . . . 16 24 39 48 Haulers Intercepted 7 | . . 1 . . . 1 . . . 4 . . . . . . 1 Recyclers Shooed 2 | . . . . . . . 1 . . . . . . . . 1 . Parts Field Recycled . | . . . . . . . . . . . . . . . . . . Retrieved Matter . | . . . . . . . . . . . . . . . . . . Parts Self-Destructed 20 | . . . . . . . . . . . . . . . 20 . . Prevented . | . . . . . . . . . . . . . . . . . . Parts Restored . | . . . . . . . . . . . . . . . . . . Kills | -11 -10 -9 -9 -8 -7 -6 -6 -6 -6 -6 -5 -5 -5 -5 -4 -4 -3 ------- Run | Yrd Mat Mat Min Mat Fac Fac Ext Cet Arc Hub Fac Upp Upp War Pro Fac Res Combat Hostiles Destroyed 112 | . 8 . . 8 3 6 18 . . 14 . . . 7 9 12 27 Guns 44 | . 8 . . 7 2 1 . . . 1 . . . 2 6 10 7 Cannons 45 | . . . . . . 4 18 . . 10 . . . 4 2 . 7 AOE 13 | . . . . 1 1 . . . . . . . . 1 1 1 8 Classes Destroyed 19 | . 2 1 . 2 . 3 5 . . 1 1 . . 2 . 1 1 Worker 8 | . . . . . . 2 . . . 5 . . . . . 1 . Builder 7 | . . . . . . . 3 . . 2 . . . . . . 2 Hauler 7 | . . 1 . . . 1 . . . 4 . . . . . . 1 Recycler 8 | . . . . . . 3 2 . . 2 . . . . . 1 . Carrier 1 | . . . . . . . 1 . . . . . . . . . . Mechanic 1 | . . . . . . . . . . . . . . . . 1 . Operator 1 | . . . . . . . . . . . 1 . . . . . . Watcher 1 | . . . . . . . 1 . . . . . . . . . . Swarmer 23 | . 6 . . 3 . . 4 . . . . . . . 5 . 5 Saboteur 3 | . . . . . . . . . . . . . . 2 . . 1 Grunt 30 | . 2 . . 2 3 3 6 . . 5 . . . 2 3 . 4 Protector 4 | . . . . . . . 1 . . 1 . . . . . . 2 Sentry 18 | . . . . 2 . 2 4 . . 2 . . . . . 6 2 Demolisher 1 | . . . . . . . 1 . . . . . . . . . . Hunter 15 | . . . . 1 . . 2 . . 1 . . . . . 4 7 Programmer 11 | . . . . . . . . . . 2 . . . 2 . 2 5 Behemoth 2 | . . . . . . 1 . . . . . . . . 1 . . Enhanced Grunt 2 | . . . . . . . . . . 2 . . . . . . . Lightning 3 | . . . . . . . . . . 3 . . . . . . . Striker 1 | . . . . . . . . . . . . . . . . . 1 Executioner 1 | . . . . . . . . . . . . . . 1 . . . Best Kill Streak 14 | . 6 1 . 3 3 2 6 . . 6 1 . . 4 5 4 14 Combat Bots Only 13 | . 6 . . 3 3 2 4 . . 3 . . . 4 5 4 13 Max Kills in Single Turn 7 | . 1 1 . 1 2 2 1 . . 7 1 . . 1 1 1 3 Gunslinging . | . . . . . . . . . . . . . . . . . . Exploded 3 | . . . . 1 1 . . . . . . . . 1 1 1 3 Melee . | . . . . . . . . . . . . . . . . . . Uniques/NPCs Destroyed . | . . . . . . . . . . . . . . . . . . Combat | -11 -10 -9 -9 -8 -7 -6 -6 -6 -6 -6 -5 -5 -5 -5 -4 -4 -3 -------- Run | Yrd Mat Mat Min Mat Fac Fac Ext Cet Arc Hub Fac Upp Upp War Pro Fac Res Hostile Shots Fired 1263 | . 53 . 3 65 13 145 136 23 4 181 . . . 128 102 108 302 Missed 380 | . 13 . . 12 3 60 49 10 . 46 . . . 46 19 38 84 Hits 883 | . 40 . 3 53 10 85 87 13 4 135 . . . 82 83 70 218 Melee 10 | . . . . . . . . . . . . . . 4 . . 6 Projectile 873 | . 40 . 3 53 10 85 87 13 4 135 . . . 78 83 70 212 AOE 4 | . 1 . . . . 1 2 . . . . . . . . . . Critical Strikes 44 | . . . . 5 . 1 . 1 1 14 . . . 7 1 3 11 Part Disruptions 3 | . . . . . . . . . . 1 . . . . . . 2 Damage Taken 15983 | . 456 . 38 508 108 1347 1029 306 89 2973 . . . 1431 1444 1376 4878 Core 2584 | . 71 . . 51 6 135 73 . . 352 . . . 222 212 137 1325 Absorbed by Shields 1555 | . . . . . . . 253 27 . . . . . 390 66 31 788 Reduced by Siege Mode 337 | . . . . . . . . . . 74 . . . . 19 35 209 Redirected to Shielding 14 | . . . . . . . . . . . . . . . . 14 . Regen/Repaired (Parts) 1163 | . . 115 . . . . . . . . . . . 286 . . 762 Core Remaining (%) 79 | 100 71 . 100 90 99 . . . . 34 . . . . 56 88 . Volleys Fired 362 | . 27 2 3 23 3 32 46 7 3 82 2 . . 13 25 37 57 Largest 4 | . 2 3 3 3 3 3 3 3 3 3 3 . . 3 3 3 4 Hottest 360 | . 40 60 60 110 118 195 125 125 125 211 261 . . 220 271 250 360 Shots Fired 925 | . 54 6 9 62 9 71 136 19 8 178 5 . . 35 53 105 175 Gun 423 | . 54 6 9 62 9 11 . . . 18 . . . 11 25 93 125 Cannon 493 | . . . . . . 60 136 19 8 160 5 . . 24 28 12 41 Launcher 9 | . . . . . . . . . . . . . . . . . 9 Special . | . . . . . . . . . . . . . . . . . . Kinetic 226 | . 54 6 9 52 3 4 . . . . . . . . 11 77 10 Thermal 620 | . . . . . . 60 136 19 8 145 2 . . 24 42 28 156 Explosive 9 | . . . . . . . . . . . . . . . . . 9 Electromagnetic 59 | . . . . 10 6 7 . . . 33 3 . . . . . . Entropic 11 | . . . . . . . . . . . . . . 11 . . . Robot Hit Streak 19 | . 7 5 4 9 11 14 19 15 10 18 3 . . 6 14 15 15 Robot Miss Streak 6 | . 3 . 3 3 1 3 3 1 . 5 1 . . 2 6 3 4 Penetration Max 1 | . . . . . . . . . . 1 . . . . . 1 . Secondary Targets 7 | . 4 . . 2 . . . . . . . . . . . 1 . Max Gunslinging Chain 1 | . 1 . . 1 . . . . . . . . . . . 1 . Shots Hit Robots 613 | . 31 4 4 45 7 50 92 15 8 124 3 . . 22 30 65 113 Core Hits 326 | . 12 2 . 21 9 29 42 7 2 58 1 . . 7 19 32 85 Critical Kills 4 | . . 1 . . . 1 1 . . . . . . . . . 1 Critical Parts Destroyed 1 | . . . . 1 . . . . . . . . . . . . . Critical Strikes 33 | . . 1 . 1 . 1 1 . . 5 . . . . . 2 22 Burn 23 | . . . . . . . . . . . . . . . . 2 21 Meltdown 3 | . . . . . . 1 1 . . . . . . . . . 1 Destroy 2 | . . 1 . 1 . . . . . . . . . . . . . Corrupt 5 | . . . . . . . . . . 5 . . . . . . . Melee Attacks 2 | . . . . . . . . . . . . . . . . 2 . Impact 2 | . . . . . . . . . . . . . . . . 2 . Slashing . | . . . . . . . . . . . . . . . . . . Piercing . | . . . . . . . . . . . . . . . . . . Sneak Attacks . | . . . . . . . . . . . . . . . . . . Combat Hostiles . | . . . . . . . . . . . . . . . . . . Follow-up Attacks . | . . . . . . . . . . . . . . . . . . Damage Inflicted 21618 | . 404 69 45 579 267 1300 2609 437 215 4145 125 . . 1058 864 1724 7777 Guns 6153 | . 404 69 45 530 159 243 . . . 305 . . . 349 524 1477 2048 Cannons 9761 | . . . . . . 1057 2609 437 215 3013 125 . . 709 289 247 1060 Explosions 5704 | . . . . 49 108 . . . . 827 . . . . 51 . 4669 Melee . | . . . . . . . . . . . . . . . . . . Ramming . | . . . . . . . . . . . . . . . . . . Kinetic 2711 | . 404 69 45 383 54 99 . . . . . . . . 277 1307 73 Thermal 12031 | . . . . 49 108 1057 2609 437 215 2768 40 . . 709 587 417 3035 Explosive 4669 | . . . . . . . . . . . . . . . . . 4669 Electromagnetic 1858 | . . . . 147 105 144 . . . 1377 85 . . . . . . Impact . | . . . . . . . . . . . . . . . . . . Slashing . | . . . . . . . . . . . . . . . . . . Piercing . | . . . . . . . . . . . . . . . . . . Entropic 349 | . . . . . . . . . . . . . . 349 . . . Highest Corruption 57 | . . . . . . 2 4 4 4 57 . . . . . 6 17 Average Corruption 5 | . . . . . . 2 2 4 4 10 . . . . . 5 5 Corruption Purged . | . . . . . . . . . . . . . . . . . . Corruption Blocked . | . . . . . . . . . . . . . . . . . . Effects 116 | . . . . . . 1 23 9 8 39 . . . . . 10 26 Message Errors 21 | . . . . . . . 6 2 1 7 . . . . . 2 3 Matter Fused 24 | . . . . . . . 4 1 3 10 . . . . . 2 4 Heat Flow Errors 17 | . . . . . . 1 4 1 . 4 . . . . . 1 6 Energy Discharges 14 | . . . . . . . 3 2 2 3 . . . . . . 4 Parts Fused 1 | . . . . . . . . . . 1 . . . . . . . Data Loss (minor) 13 | . . . . . . . 2 3 . 2 . . . . . 3 3 Data Loss (major) 5 | . . . . . . . . . 1 3 . . . . . 1 . Misfires 6 | . . . . . . . . . . 3 . . . . . 1 2 Alerts 6 | . . . . . . . 2 . . 4 . . . . . . . Weapon Failures 9 | . . . . . . . 2 . 1 2 . . . . . . 4 Overload Shots 1 | . . . . . . . . 1 . . . . . . . . . Effects 1 | . . . . . . . . 1 . . . . . . . . . Heat Surge 1 | . . . . . . . . 1 . . . . . . . . . Overflow Damage 503 | . . . . . 13 24 75 . . 46 28 . . 37 9 . 271 Projectiles 328 | . . . . . . 24 75 . . 46 28 . . 37 . . 118 Explosions 175 | . . . . . 13 . . . . . . . . . 9 . 153 Melee . | . . . . . . . . . . . . . . . . . . Knockbacks . | . . . . . . . . . . . . . . . . . . Impact . | . . . . . . . . . . . . . . . . . . Kinetic . | . . . . . . . . . . . . . . . . . . Secondary . | . . . . . . . . . . . . . . . . . . Self-Inflicted Damage 509 | . . . . . . . . . . 106 . . . . 36 . 367 Shots 7 | . . . . . . . . . . 1 . . . . 1 . 5 Rammed . | . . . . . . . . . . . . . . . . . . Targets Rammed . | . . . . . . . . . . . . . . . . . . Kicked . | . . . . . . . . . . . . . . . . . . Crushed . | . . . . . . . . . . . . . . . . . . Highest Temperature 622 | . . . 7 108 171 234 247 110 6 255 141 . . 221 622 134 266 Average Temperature 95 | . . . 4 27 92 104 66 42 6 81 61 . . 88 184 43 114 Received Heat Transfer 1857 | . 102 . 21 180 54 351 210 36 9 162 . . . 322 159 36 215 Effects 8 | . . . . . . 3 . . . . . . . . 5 . . Shutdowns 3 | . . . . . . . . . . . . . . . 3 . . Interference 4 | . . . . . . 3 . . . . . . . . 1 . . Short Circuit 1 | . . . . . . . . . . . . . . . 1 . . Siege Activations 8 | . . . . . . . . . . 2 . . . . 2 1 3 Total Turns 136 | . . . . . . . . . . 60 . . . . 15 17 44 Longest Duration 57 | . . . . . . . . . . 57 . . . . 9 17 17 Martial Activations . | . . . . . . . . . . . . . . . . . . Shielding Activations . | . . . . . . . . . . . . . . . . . . Robots Disrupted 1 | . . . . . . . . . . . . . . . 1 . . Combat Hostiles 1 | . . . . . . . . . . . . . . . 1 . . Robots Corrupted 5 | . . . . . . . . . . 5 . . . . . . . Combat Hostiles 3 | . . . . . . . . . . 3 . . . . . . . Parts Fried 23 | . . . . 2 . . 2 . . 18 1 . . . . . . Impact Corruptions . | . . . . . . . . . . . . . . . . . . Robots Melted 8 | . . . . . . 1 1 . . . . . . . . 1 5 Combat Hostiles 7 | . . . . . . 1 . . . . . . . . . 1 5 Parts Melted 68 | . . . . . . 5 14 . . 3 . . . . 1 4 41 Heat Transferred 17578 | . . . . . 100 1443 3458 592 296 3806 . . . . 666 859 6358 Parts Sabotaged 3 | . . . . . . . . . . . . . . 3 . . . Parts Stolen . | . . . . . . . . . . . . . . . . . . Parts Stripped . | . . . . . . . . . . . . . . . . . . Power Chain Reactions 4 | . . . . 1 1 . . . . 1 . . . . 1 . . Alert | -11 -10 -9 -9 -8 -7 -6 -6 -6 -6 -6 -5 -5 -5 -5 -4 -4 -3 ------- Run | Yrd Mat Mat Min Mat Fac Fac Ext Cet Arc Hub Fac Upp Upp War Pro Fac Res Maximum Alert Level 4 | . . . . . . . 4 3 2 4 2 . . . . . 2 Low Security (%) 62 | 100 100 100 100 100 100 100 50 . . 12 . . . . . 100 84 Level 1 10 | . . . . . . . 3 . 97 12 65 . . . . . 13 Level 2 12 | . . . . . . . 23 9 2 36 34 . . . . . 1 Level 3 11 | . . . . . . . 12 90 . 30 . . . . . . . Level 4 2 | . . . . . . . 10 . . 7 . . . . . . . Level 5 . | . . . . . . . . . . . . . . . . . . High Security . | . . . . . . . . . . . . . . . . . . Max Security . | . . . . . . . . . . . . . . . . . . Peak Influence 1439 | . 135 48 138 129 77 75 1439 822 404 1124 540 . . . . 145 450 Initial 785 | . . 48 . 50 44 12 4 785 274 113 540 . . . . . 30 Average 262 | . 84 16 17 54 26 16 452 750 354 619 338 . . . . 59 61 Influence Increases 6879 | . 195 12 190 259 77 226 2009 142 160 1757 31 . . 303 200 407 911 Destroy 0b10 Robot/C 3340 | . 160 . 140 160 60 120 840 80 80 620 . . . 160 180 240 500 Destroy 0b10 Robot/NC 220 | . . 5 . . . 30 40 5 . 95 5 . . . . 15 25 Destroy Leader 634 | . 20 2 30 50 10 42 124 . . 174 . . . . 20 90 72 Allied During Kill 1564 | . . . 20 . . . 866 42 80 548 . . . 8 . . . Successful Hack 203 | . . 5 . . . . 82 . . 57 24 . . . . . 35 Disable Machine 255 | . . . . 15 . 30 30 15 . 105 . . . . . 30 30 Destroy Structure 348 | . . . . 4 7 4 12 . . 143 2 . . . . 32 144 Lose Combat Pursuer 315 | . 15 . . 30 . . 15 . . 15 . . . 135 . . 105 Influence Decreases 6429 | . 80 127 60 290 149 242 617 858 523 977 928 207 . 206 297 348 520 Entered New Map 2234 | . . 67 . 80 55 15 7 618 413 211 564 78 . . 97 . 29 Time Decay 2974 | . 80 60 40 140 94 197 419 170 90 506 214 129 . 116 100 298 321 Lost Part 600 | . . . . 50 . 30 10 10 . 120 . . . 60 100 50 170 Lost Ally 471 | . . . 20 20 . . 181 60 20 140 . . . 30 . . . Purge Threat 150 | . . . . . . . . . . . 150 . . . . . . Squads Dispatched 32 | . 1 2 . 4 2 1 4 . . 6 2 . . . . 3 7 Investigation 5 | . . . . . 2 . 2 . . . 1 . . . . . . Extermination 9 | . . . . . . 1 . . . 2 1 . . . . 2 3 Reinforcement 10 | . 1 2 . 1 . . 1 . . 4 . . . . . . 1 Assault 1 | . . . . . . . 1 . . . . . . . . . . Garrison 7 | . . . . 3 . . . . . . . . . . . 1 3 Intercept . | . . . . . . . . . . . . . . . . . . Searches Triggered . | . . . . . . . . . . . . . . . . . . Construction Impeded 2 | . . . . . . . . . . 2 . . . . . . . Haulers Reinforced . | . . . . . . . . . . . . . . . . . . Active Scanning Responses . | . . . . . . . . . . . . . . . . . . Cargo Convoy Interrupts 1 | . . . . . . . . . . . . . . . . . 1 Stealth | -11 -10 -9 -9 -8 -7 -6 -6 -6 -6 -6 -5 -5 -5 -5 -4 -4 -3 --------- Run | Yrd Mat Mat Min Mat Fac Fac Ext Cet Arc Hub Fac Upp Upp War Pro Fac Res Distress Signals 13 | . 2 1 . . . . 3 1 . 2 . . . 2 . . 2 Communications Jammed . | . . . . . . . . . . . . . . . . . . Distress Signals . | . . . . . . . . . . . . . . . . . . Times Spotted 237 | . 13 6 6 11 4 11 47 6 4 24 1 . . 26 10 14 54 Peak Tracking Total 17 | . 5 3 5 5 3 3 9 5 2 5 . . . 9 5 5 17 Tactical Retreats 12 | . 1 . . 2 . . 1 . . 1 . . . 4 . . 3 Traps | -11 -10 -9 -9 -8 -7 -6 -6 -6 -6 -6 -5 -5 -5 -5 -4 -4 -3 ------- Run | Yrd Mat Mat Min Mat Fac Fac Ext Cet Arc Hub Fac Upp Upp War Pro Fac Res Traps Triggered 8 | . . . . . . 1 6 . . . . . . . . 1 . Indirectly . | . . . . . . . . . . . . . . . . . . Trap Hack Attempts . | . . . . . . . . . . . . . . . . . . Triggered . | . . . . . . . . . . . . . . . . . . Disarmed . | . . . . . . . . . . . . . . . . . . Reprogrammed 1 | . . . . . . . . . . . 1 . . . . . . Reused . | . . . . . . . . . . . . . . . . . . Traps Extracted . | . . . . . . . . . . . . . . . . . . Installed . | . . . . . . . . . . . . . . . . . . Triggered . | . . . . . . . . . . . . . . . . . . Machines | -11 -10 -9 -9 -8 -7 -6 -6 -6 -6 -6 -5 -5 -5 -5 -4 -4 -3 ---------- Run | Yrd Mat Mat Min Mat Fac Fac Ext Cet Arc Hub Fac Upp Upp War Pro Fac Res Machines Disabled 21 | . . . . 1 . 2 6 1 . 7 . . . . . 2 2 Max in Single Turn 5 | . . . . 1 . 1 2 1 . 5 . . . . . 1 1 Network Hub 1 | . . . . . . . . . . 1 . . . . . . . Machines Repaired . | . . . . . . . . . . . . . . . . . . Machines Dismantled . | . . . . . . . . . . . . . . . . . . Machines Sabotaged . | . . . . . . . . . . . . . . . . . . Overloaded Fab Kills . | . . . . . . . . . . . . . . . . . . Hacking | -11 -10 -9 -9 -8 -7 -6 -6 -6 -6 -6 -5 -5 -5 -5 -4 -4 -3 --------- Run | Yrd Mat Mat Min Mat Fac Fac Ext Cet Arc Hub Fac Upp Upp War Pro Fac Res Machines Accessed 44 | . . 2 . . 2 3 16 1 . 7 5 . . 2 . . 6 Terminals 34 | . . 1 . . . 2 16 1 . 7 5 . . . . . 2 Fabricators . | . . . . . . . . . . . . . . . . . . Repair Stations 3 | . . 1 . . . . . . . . . . . . . . 2 Recycling Units 2 | . . . . . 1 1 . . . . . . . . . . . Scanalyzers 1 | . . . . . . . . . . . . . . . . . 1 Garrison Access 2 | . . . . . 1 . . . . . . . . . . . 1 Total Hacks 106 | . . 4 . . 6 6 27 2 . 22 23 . . 2 . . 14 Successful 51 | . . 3 . . 1 6 14 . . 11 10 . . 2 . . 4 Failed 55 | . . 1 . . 5 . 13 2 . 11 13 . . . . . 10 Catastrophic 9 | . . . . . 1 . . . . 2 3 . . . . . 3 Database Lockouts . | . . . . . . . . . . . . . . . . . . Manual 15 | . . 2 . . . 1 1 1 . 8 2 . . . . . . Terminals 84 | . . 2 . . . 3 27 2 . 22 23 . . . . . 5 Fabricators . | . . . . . . . . . . . . . . . . . . Repair Stations 7 | . . 2 . . . . . . . . . . . . . . 5 Recycling Units 6 | . . . . . 3 3 . . . . . . . . . . . Scanalyzers 2 | . . . . . . . . . . . . . . . . . 2 Garrison Access 5 | . . . . . 3 . . . . . . . . . . . 2 Terminal Hacks 36 | . . . . . . 2 14 . . 9 9 . . 2 . . . Record 1 | . . . . . . . . . . . 1 . . . . . . Robot Analysis 2 | . . . . . . . . . . 2 . . . . . . . Open Door 13 | . . . . . . 1 10 . . . . . . 2 . . . Emergency Access Points 3 | . . . . . . . . . . 2 1 . . . . . . Repair Station Index 1 | . . . . . . . . . . . 1 . . . . . . Recycling Unit Index 1 | . . . . . . . . . . . 1 . . . . . . Alert Level 4 | . . . . . . 1 1 . . 1 1 . . . . . . Unreport Threat 1 | . . . . . . . . . . . 1 . . . . . . Locate Traps 1 | . . . . . . . 1 . . . . . . . . . . Reprogram Traps 1 | . . . . . . . . . . . 1 . . . . . . Dispatch Records 1 | . . . . . . . . . . 1 . . . . . . . Surveillance Status 1 | . . . . . . . . . . 1 . . . . . . . Patrol Status 1 | . . . . . . . . . . . 1 . . . . . . Transport Status 1 | . . . . . . . 1 . . . . . . . . . . Recall Extermination 1 | . . . . . . . . . . . 1 . . . . . . Registered Components 1 | . . . . . . . . . . 1 . . . . . . . Zone Layout 2 | . . . . . . . 1 . . 1 . . . . . . . Fabricator Hacks . | . . . . . . . . . . . . . . . . . . Repair Station Hacks 6 | . . 2 . . . . . . . . . . . . . . 4 Scan Component 3 | . . 1 . . . . . . . . . . . . . . 2 Repair 3 | . . 1 . . . . . . . . . . . . . . 2 Recycling Unit Hacks 4 | . . . . . 1 3 . . . . . . . . . . . Process 1 | . . . . . . 1 . . . . . . . . . . . Report Inventory 2 | . . . . . 1 1 . . . . . . . . . . . Retrieve Matter 1 | . . . . . . 1 . . . . . . . . . . . Scanalyzer . | . . . . . . . . . . . . . . . . . . Garrison Access Hacks . | . . . . . . . . . . . . . . . . . . Unauthorized Hacks 5 | . . 1 . . . 1 . . . 2 1 . . . . . . Terminals 5 | . . 1 . . . 1 . . . 2 1 . . . . . . Botnet 5 | . . 1 . . . 1 . . . 2 1 . . . . . . Fabricators . | . . . . . . . . . . . . . . . . . . Repair Stations . | . . . . . . . . . . . . . . . . . . Recycling Units . | . . . . . . . . . . . . . . . . . . Scanalyzers . | . . . . . . . . . . . . . . . . . . Garrison Access . | . . . . . . . . . . . . . . . . . . Data Cores Recovered 1 | . . . . . . . . . . 1 . . . . . . . Used 1 | . . . . . . . . . . 1 . . . . . . . Hacking Detections 32 | . . 2 . . 2 2 8 1 . 7 5 . . . . . 5 Full Trace Events 5 | . . . . . 2 . 2 . . . 1 . . . . . . Feedback Events . | . . . . . . . . . . . . . . . . . . Feedback Blocked . | . . . . . . . . . . . . . . . . . . Robot Schematics Acquired . | . . . . . . . . . . . . . . . . . . Robots Built . | . . . . . . . . . . . . . . . . . . Authchips . | . . . . . . . . . . . . . . . . . . Time . | . . . . . . . . . . . . . . . . . . Total Robot Build Rating . | . . . . . . . . . . . . . . . . . . Part Schematics Acquired . | . . . . . . . . . . . . . . . . . . Parts Built . | . . . . . . . . . . . . . . . . . . Authchips . | . . . . . . . . . . . . . . . . . . Time . | . . . . . . . . . . . . . . . . . . Total Part Build Rating . | . . . . . . . . . . . . . . . . . . Part Studies Acquired . | . . . . . . . . . . . . . . . . . . Parts Repaired 2 | . . 1 . . . . . . . . . . . . . . 1 Time 188 | . . 26 . . . . . . . . . . . . . . 162 Parts Recycled . | . . . . . . . . . . . . . . . . . . Recycled Matter 8 | . . . . . . 8 . . . . . . . . . . . Retrieved Matter 8 | . . . . . . 8 . . . . . . . . . . . Retrieved Components . | . . . . . . . . . . . . . . . . . . Parts Scanalyzed . | . . . . . . . . . . . . . . . . . . Part Schematics Acquired . | . . . . . . . . . . . . . . . . . . Parts Damaged . | . . . . . . . . . . . . . . . . . . Bothacking | -11 -10 -9 -9 -8 -7 -6 -6 -6 -6 -6 -5 -5 -5 -5 -4 -4 -3 ------------ Run | Yrd Mat Mat Min Mat Fac Fac Ext Cet Arc Hub Fac Upp Upp War Pro Fac Res Used RIF Installer . | . . . . . . . . . . . . . . . . . . Robots Hacked . | . . . . . . . . . . . . . . . . . . Non-combat . | . . . . . . . . . . . . . . . . . . Combat . | . . . . . . . . . . . . . . . . . . Robot Hacks Applied . | . . . . . . . . . . . . . . . . . . Relay Couplers Released 4 | . . . . . . . . . . 4 . . . . . . . Programmers 4 | . . . . . . . . . . 4 . . . . . . . Fabnet Peak Effective % . | . . . . . . . . . . . . . . . . . . Robots Rewired 11 | . . . . . . . 6 . . . . . . 5 . . . Allies Hacked . | . . . . . . . . . . . . . . . . . . Hacks Repelled . | . . . . . . . . . . . . . . . . . . Allies | -11 -10 -9 -9 -8 -7 -6 -6 -6 -6 -6 -5 -5 -5 -5 -4 -4 -3 -------- Run | Yrd Mat Mat Min Mat Fac Fac Ext Cet Arc Hub Fac Upp Upp War Pro Fac Res Total Allies 34 | . . . 3 . . . 21 5 . . . . . 5 . . . Largest Group 16 | . . . 3 1 . . 16 11 11 10 . . . 5 . . . Highest-Rated Group 636 | . . . 40 16 . . 583 636 636 619 . . . 263 . . . Highest-Rated Ally 159 | . . . 16 16 . . 159 151 96 96 . . . 68 . . . Total Orders . | . . . . . . . . . . . . . . . . . . Ally Attacks 322 | . . . 19 1 . . 138 43 18 95 . . . 8 . . . Total Damage 7803 | . . . 271 14 . . 2919 696 506 3015 . . . 382 . . . Kills 68 | . . . 8 . . . 25 6 4 24 . . . 1 . . . Allies Corrupted 4 | . . . . . . . . . . 2 . . . 2 . . . Allies Melted 3 | . . . . . . . 1 . . . . . . 2 . . . Intel | -11 -10 -9 -9 -8 -7 -6 -6 -6 -6 -6 -5 -5 -5 -5 -4 -4 -3 ------- Run | Yrd Mat Mat Min Mat Fac Fac Ext Cet Arc Hub Fac Upp Upp War Pro Fac Res Active Infowar (turns) 7077 | . . . 1 268 318 251 . . . 1022 457 737 474 1068 543 733 1205 Optics 4825 | . . . . . . . . . . . 65 737 474 1068 543 733 1205 Sensors 5581 | . . . 1 268 318 251 . . . 1022 457 737 474 795 . 53 1205 Machine Analysis 429 | . . . . . . . . . . . . . . . . 429 . Robot Analysis Total 2 | . . . . . . . . . . 2 . . . . . . . Derelict Logs Recovered 6 | . . . 2 . . . . . . . . 1 1 . 2 . . Drone Launches . | . . . . . . . . . . . . . . . . . . Drone Recoveries . | . . . . . . . . . . . . . . . . . . Exploration | -11 -10 -9 -9 -8 -7 -6 -6 -6 -6 -6 -5 -5 -5 -5 -4 -4 -3 ------------- Run | Yrd Mat Mat Min Mat Fac Fac Ext Cet Arc Hub Fac Upp Upp War Pro Fac Res Turns Passed 11071 | 79 206 171 538 289 318 839 1399 355 184 1367 458 737 474 1068 562 733 1294 Spaces Moved 5585 | 46 76 82 309 140 209 355 531 175 96 682 270 454 296 605 283 332 644 Core 80 | 6 . . . . . . . . . . . . . . 1 . 73 Treads 5050 | 40 76 82 309 40 . 346 531 175 96 682 270 454 296 555 282 332 484 Legs . | . . . . . . . . . . . . . . . . . . Wheels 368 | . . . . 100 209 9 . . . . . . . 50 . . . Hover . | . . . . . . . . . . . . . . . . . . Flight 87 | . . . . . . . . . . . . . . . . . 87 Fastest Speed 40 | 50 160 160 160 110 140 140 160 160 160 160 160 160 160 160 160 155 40 Average Speed 161 | 145 160 160 160 130 140 197 196 164 160 160 160 160 160 160 162 158 131 Slowest Speed 750 | 160 160 160 160 240 140 235 235 240 160 160 160 160 160 160 750 160 240 Overloaded Moves . | . . . . . . . . . . . . . . . . . . Propulsion Burnouts . | . . . . . . . . . . . . . . . . . . Robots Hopped . | . . . . . . . . . . . . . . . . . . Potential Cave-ins . | . . . . . . . . . . . . . . . . . . Cave-ins Triggered . | . . . . . . . . . . . . . . . . . . Exploration Rate (%) 40 | 4 25 17 75 25 6 9 71 70 77 60 7 62 68 79 49 14 18 Regions Visited 17 Branch Regions 9 Pre-discovered Areas 1 | . . . 1 . . . . . . . . . . . . . . Known Exits Taken 13 | . . . . 1 1 1 1 1 1 1 1 1 1 1 1 1 . Unknown Exits Taken 4 | 1 1 1 1 . . . . . . . . . . . . . . Scrap Searched 6 | . . . 1 . . . . . . . . 2 . . 3 . . Spaces Dug 1 | . . . . . . . . . . . . . . . . 1 . Terrain Destroyed 378 | . . . . 5 6 4 8 . . 199 1 . . 7 16 26 106 Melee 1 | . . . . . . . . . . . . . . . . 1 . Projectile 79 | . . . . . . 4 8 . . 17 1 . . 7 12 25 5 AOE 297 | . . . . 5 6 . . . . 181 . . . . 4 . 101 Terrain Rammed . | . . . . . . . . . . . . . . . . . . Walls Destroyed . | . . . . . . . . . . . . . . . . . . Machines Disabled . | . . . . . . . . . . . . . . . . . . Actions | -11 -10 -9 -9 -8 -7 -6 -6 -6 -6 -6 -5 -5 -5 -5 -4 -4 -3 --------- Run | Yrd Mat Mat Min Mat Fac Fac Ext Cet Arc Hub Fac Upp Upp War Pro Fac Res Total 6907 | 55 107 117 346 201 227 431 788 230 121 815 290 464 297 671 337 442 968 Wait 530 | . 2 26 25 25 10 7 122 31 16 14 . 4 . 2 11 17 218 Move 5568 | 45 75 81 308 139 208 354 530 174 95 681 269 453 295 604 282 331 644 Hop . | . . . . . . . . . . . . . . . . . . Pick Up 78 | 4 3 1 2 6 2 7 11 4 3 3 4 2 . 6 2 10 8 Fast Attach 85 | 6 . 3 2 2 2 12 2 2 . 11 1 1 . 5 4 20 12 Attach 52 | . . 2 . 5 1 4 1 2 . 7 4 . . 3 9 4 10 Detach 25 | . . 1 1 . 1 5 . . . 4 1 . . . 1 7 4 Swap 45 | . . . 3 1 . 1 3 2 1 6 6 2 . 2 3 11 4 Drop 66 | . . 1 2 . . 9 14 8 3 7 3 2 . 3 . 3 11 Fire 362 | . 27 2 3 23 3 32 46 7 3 82 2 . . 13 25 37 57 Melee 2 | . . . . . . . . . . . . . . . . 2 . Ram . | . . . . . . . . . . . . . . . . . . Kick . | . . . . . . . . . . . . . . . . . . Crush . | . . . . . . . . . . . . . . . . . . Escape Stasis 8 | . . . . . . . 8 . . . . . . . . . . Rewire 86 | . . . . . . . 51 . . . . . 2 33 . . . Trap . | . . . . . . . . . . . . . . . . . . Miscellaneous . | . . . . . . . . . . . . . . . . . . Route ------- -11/Scrapyard -10/Materials -9/Materials -9/Mines -8/Materials -7/Factory -6/Factory -6/Extension (discovered 2 exits: *Fac / *Cet) -6/Cetus -6/Archives (discovered 3 exits: *Fac / *Hub x2) -6/Hub_04(d) (discovered 3 exits: *Fac x3) -5/Factory -5/Upper Caves -5/Upper Caves -5/Warlord -4/Proximity Caves -4/Factory -3/Research (discovered 1 exit: Tes) History --------- Turn | Location | Event 5 | -11/Scrapyard | Discovered new exit (range 15) 80 | -11/Scrapyard | Entered Materials 224 | -10/Materials | Discovered new exit (range 12) 286 | -10/Materials | Entered another Materials area 286 | -9/Materials | Evolved 2 slots: Utility x1, Weapon x1 328 | -9/Materials | Build established: Mutant 427 | -9/Materials | Repaired Lgt. Treads 443 | -9/Materials | Discovered new exit (range 6) 457 | -9/Materials | Entered Mines 477 | -9/Mines | Assisted by bots powering up and referring to "LRC-V3" 504 | -9/Mines | Learned Materials stockpile data 672 | -9/Mines | Build established: Gunner 737 | -9/Mines | Learned location of Zion (-7) 814 | -9/Mines | Found a damaged Exp. Sensor Array with a note attached 818 | -9/Mines | Found Prototype Device 818 | -9/Mines | Identified Exp. Sensor Array 931 | -9/Mines | Discovered new exit (range 11) 995 | -9/Mines | Entered Materials 995 | -8/Materials | Accompanied by 1 ally 995 | -8/Materials | Evolved 2 slots: Utility x2 1041 | -8/Materials | Garrison activated, responded to threat 1140 | -8/Materials | Lost 4 parts (1n1u2w) 1255 | -8/Materials | Discovered new exit (range 8) 1283 | -8/Materials | Identified exit to Factory 1284 | -8/Materials | Entered Factory 1284 | -7/Factory | Evolved 2 slots: Power x1, Utility x1 1577 | -7/Factory | Discovered new exit (range 14) 1601 | -7/Factory | Identified exit to Factory 1602 | -7/Factory | Entered another Factory area 1602 | -6/Factory | Evolved 2 slots: Propulsion x1, Utility x1 1838 | -6/Factory | Spotted B-75 Beast 1892 | -6/Factory | Destroyed B-75 Beast 1918 | -6/Factory | Lost 4 parts (1n1u2w) 2432 | -6/Factory | Discovered new exit (range 6) 2439 | -6/Factory | Identified exit to Extension 2441 | -6/Factory | Entered Extension 2526 | -6/Extension | Rescued a captive Derelict 2528 | -6/Extension | Rescued a captive Derelict 2626 | -6/Extension | Rescued a captive Derelict 2838 | -6/Extension | Rescued a captive Derelict 2840 | -6/Extension | Rescued a captive Derelict 2855 | -6/Extension | Rescued a captive Derelict 2913 | -6/Extension | Rescued A7 3072 | -6/Extension | Rescued a captive Derelict 3106 | -6/Extension | Rescued a captive Derelict 3108 | -6/Extension | Rescued a captive Derelict 3140 | -6/Extension | Spotted B-75 Beast 3214 | -6/Extension | Spotted B-75 Beast 3225 | -6/Extension | Allies destroyed B-75 Beast 3229 | -6/Extension | Allies destroyed B-75 Beast 3277 | -6/Extension | Build established: Commander-Gunner 3351 | -6/Extension | Rescued a captive Derelict 3353 | -6/Extension | Rescued a captive Derelict 3396 | -6/Extension | Rescued a captive Derelict 3397 | -6/Extension | Rescued a captive Derelict 3491 | -6/Extension | First assault squad dispatched 3576 | -6/Extension | Lost 3 allies 3665 | -6/Extension | Rescued a captive Derelict 3734 | -6/Extension | Discovered new exit (range 10) 3736 | -6/Extension | Discovered new exit (range 6) 3745 | -6/Extension | Disrupted transfer network 3763 | -6/Extension | Identified exit to Cetus 3840 | -6/Extension | Entered Cetus 3840 | -6/Cetus | Accompanied by 10 allies (A7) 3845 | -6/Cetus | Acquired a Cetus Manufacturing Module code from A7 3860 | -6/Cetus | Spotted Cetus Guard 3860 | -6/Cetus | Spotted Cetus Guard 3866 | -6/Cetus | Spotted Cetus Guard 3868 | -6/Cetus | Spotted Cetus Guard 3876 | -6/Cetus | Allies destroyed Cetus Guard 3886 | -6/Cetus | Allies destroyed Cetus Guard 3893 | -6/Cetus | Allies destroyed Cetus Guard 3893 | -6/Cetus | Allies destroyed Cetus Guard 3907 | -6/Cetus | Lost 4 allies 3973 | -6/Cetus | Started Cetus Manufacturing Module 3998 | -6/Cetus | Manufactured an Enhanced Grunt 4023 | -6/Cetus | Manufactured an Enhanced Grunt 4048 | -6/Cetus | Manufactured an Enhanced Grunt 4073 | -6/Cetus | Manufactured an Enhanced Grunt 4098 | -6/Cetus | Manufactured an Enhanced Grunt 4153 | -6/Cetus | Discovered new exit (range 16) 4176 | -6/Cetus | Identified exit to Archives 4195 | -6/Cetus | Entered Archives 4195 | -6/Archives | Accompanied by 11 allies 4243 | -6/Archives | Discovered new exit (range 16) 4259 | -6/Archives | Discovered new exit (range 15) 4310 | -6/Archives | Identified exit to Factory 4344 | -6/Archives | Discovered new exit (range 13) 4362 | -6/Archives | Identified exit to Hub_04(d) 4379 | -6/Archives | Entered Hub_04(d) 4379 | -6/Hub_04(d) | Accompanied by 10 allies 4407 | -6/Hub_04(d) | Discovered exit to Factory (range 16) 4741 | -6/Hub_04(d) | Build established: Commander-Tank 4857 | -6/Hub_04(d) | Discovered exit to Factory (range 7) 5085 | -6/Hub_04(d) | Discovered exit to Factory (range 14) 5305 | -6/Hub_04(d) | Found Prototype Device 5305 | -6/Hub_04(d) | Identified Exp. Thermal Shield 5405 | -6/Hub_04(d) | Network Hub disabled 5431 | -6/Hub_04(d) | Spotted Lightning 5445 | -6/Hub_04(d) | Spotted Lightning 5445 | -6/Hub_04(d) | Spotted Lightning 5449 | -6/Hub_04(d) | System corruption reached 10% 5462 | -6/Hub_04(d) | Destroyed Lightning 5488 | -6/Hub_04(d) | Core integrity fell below 50% 5489 | -6/Hub_04(d) | Destroyed Lightning 5515 | -6/Hub_04(d) | Destroyed Lightning 5518 | -6/Hub_04(d) | Found Prototype Device 5518 | -6/Hub_04(d) | Identified Exp. EM Shield 5524 | -6/Hub_04(d) | Found Prototype Energy Cannon 5524 | -6/Hub_04(d) | Identified EMDS 5549 | -6/Hub_04(d) | Lost 10 parts (2p3u5w) 5597 | -6/Hub_04(d) | System corruption reached 30% 5746 | -6/Hub_04(d) | Entered Factory 5746 | -5/Factory | Evolved 2 slots: Power x1, Utility x1 5926 | -5/Factory | Build established: Scavenger-Tank 6176 | -5/Factory | Discovered new exit (range 13) 6202 | -5/Factory | Identified exit to Upper Caves 6204 | -5/Factory | Entered Upper Caves 6239 | -5/Upper Caves | Entered a destroyed Warlord outpost 6774 | -5/Upper Caves | Learned Factory stockpile data 6906 | -5/Upper Caves | Discovered new exit (range 13) 6939 | -5/Upper Caves | Identified exit to Upper Caves 6941 | -5/Upper Caves | Entered another Upper Caves area 7177 | -5/Upper Caves | Learned Factory emergency access door positions 7404 | -5/Upper Caves | Discovered new exit (range 8) 7414 | -5/Upper Caves | Identified exit to Warlord 7415 | -5/Upper Caves | Entered Warlord 7561 | -5/Warlord | Met Warlord 7586 | -5/Warlord | Warlord's base attacked by MAIN.C 7915 | -5/Warlord | Found Prototype Energy Gun 7918 | -5/Warlord | Found Prototype Energy Gun 7919 | -5/Warlord | Identified Vortex Rifle (x2) 7936 | -5/Warlord | Warlord forces counterattacked 8104 | -5/Warlord | Opened side exit 8116 | -5/Warlord | Spotted Executioner 8144 | -5/Warlord | Destroyed Executioner 8170 | -5/Warlord | Lost 6 allies 8175 | -5/Warlord | Spotted Striker 8243 | -5/Warlord | Lost 4 parts (1n2u1w) 8261 | -5/Warlord | Warlord base infiltrated, sounded retreat 8383 | -5/Warlord | Spotted Executioner 8424 | -5/Warlord | Lost 6 allies 8455 | -5/Warlord | Discovered new exit (range 12) 8475 | -5/Warlord | Identified exit to Proximity Caves 8483 | -5/Warlord | Entered Proximity Caves 8495 | -4/Proximity Caves | Lost 7 allies 8539 | -4/Proximity Caves | Learned location of 1 exit from Research 8630 | -4/Proximity Caves | Lost 8 parts (2p1n4u1w) 8679 | -4/Proximity Caves | Spotted B-86 Titan 8703 | -4/Proximity Caves | Destroyed B-86 Titan 8815 | -4/Proximity Caves | Lost 5 parts (2p1n2w) 8980 | -4/Proximity Caves | Learned 4 Research zone layouts 9004 | -4/Proximity Caves | Discovered new exit (range 7) 9012 | -4/Proximity Caves | Identified exit to Factory 9045 | -4/Proximity Caves | Entered Factory 9045 | -4/Factory | Evolved 2 slots: Propulsion x1, Utility x1 9165 | -4/Factory | Lost 3 parts (1p1u1w) 9179 | -4/Factory | Garrison activated, responded to threat 9772 | -4/Factory | Discovered new exit (range 5) 9776 | -4/Factory | Identified exit to Research 9778 | -4/Factory | Entered Research 9778 | -3/Research | Evolved 2 slots: Utility x1, Weapon x1 9779 | -3/Research | Identified exit to Testing 9793 | -3/Research | Found Prototype Device 9793 | -3/Research | Identified Adv. Kinecellerator 10736 | -3/Research | Repaired Centrium Heavy Treads 10823 | -3/Research | Garrison activated, responded to threat 10847 | -3/Research | Lost 4 parts (1p1n2u) 10885 | -3/Research | Destroyed 13 combat bots 10968 | -3/Research | Spotted Executioner 10969 | -3/Research | Cargo convoy interrupted 10974 | -3/Research | Spotted Striker 10974 | -3/Research | Spotted Striker 10976 | -3/Research | System corruption reached 10% 10983 | -3/Research | Released all parts (11) 10992 | -3/Research | Destroyed Striker 10993 | -3/Research | Core integrity fell below 50% 11013 | -3/Research | Destroyed 8 combat bots 11026 | -3/Research | Lost 10 parts (2p2n2u4w) 11029 | -3/Research | Core integrity fell below 20% 11063 | -3/Research | Found Fusion Bomb Launcher 11072 | -3/Research | Destroyed by Striker with Plasma Lance Last Messages --------------- 11028_ Acquired Impulse Thruster. 11029_ System corrupted: Matter fused (-10). 11030_ Acquired 3 matter. 11030_ R-10 Processor inserts Hcp. Storage Unit into recycling unit. 11031_ Recycling unit begins recycling process. 11041_ ALERT: Potential suspicious activity detected, Programmers report to Research Zone 6Q. 11044_ System corrupted: Matter fused (-9). 11063_ Acquired Fusion Bomb Launcher. 11066_ Critical hit (Impale). 11068_ Subatomic Condenser disabled. 11068_ Impulse Thruster destroyed. 11068_ Destroyed Impulse Thruster. 11068_ Slug penetrates Wall. 11070_ The unstable cave ceiling collapses. 11071_ Destroyed Unknown Flight Unit. 11071_ Coil Gun destroyed. 11071_ Destroyed Coil Gun. Map ----- +----------------------------------------------------+ | ] #####????????????????????????????????????????? | | #????????????????????????????????????????? | | #????????????????????????????????????????? | | #????????????????????????????????????????? | | #????????????????????????????????????????? | | ### #????????????????????????????????????????? | | ## #??#######???????????????????????????????? | | # #? #???????????????????????????????? | | # #? #???????????????????????????????? | | # # #???????????????????????????????? | | # # """" #???????????????????????????????? | | + + """" #???????????????????????????????? | | # # """" #???????????????????????????????? | | # # """" #???????????????#???????????????? | | #### #? #?????????????? #???????????????? | | #? #????????????? ????????????????? | | ! #??#######????????????? ?????????????????? | | !=% #?????????#??????????? ?????????????????? | | !%[%!==#?????????# ????????? ??????????????????? | | ###%######???????# ?????? ???????????????????? | | #*=[%== #???????# ???? ##??????????????????? | | #%[% = #???????# ##### #??????????????????? | | #!==[ " #???????# # ##?????????????????? | | #% %""" #???????# #?????????????????? | | #![[% G #???????# ###????????????????? | | # =""" #???????# @ #????????????????? | | ## " #???????# K #????????????????? | | ?# #???????# #????????????????? | | ?# #???????# #????????????????? | | ?##########???????# +????????????????? | | ??????????????????# "" #????????????????? | | ??????????????????# """ #????????????????? | | ??????????????????# # #????????????????? | | ??????????????????# # #????????????????? | | ??????????######### ###+#######???????????????? | | ??????????# ! ## ????????? | | ??????????# / ????????? | | ??????????# ## ????????? | | ###???????# ## ?????????? | | #???????# ## ###+######+######?????????? | | #???????# ## #?????????????????????????? | | #???????# ## #?????????????????????????? | | #???????# ## #?????????????????????????? | | #???????# ## #?????????????????????????? | | #???????#* # #?????????????????????????? | | #???????# #T #?????????????????????????? | | #???????# ## #?????????????????????????? | | ?????????# ## #?????????????????????????? | | ############+###### #?????????????????????????? | | #?????????????????????????? | +----------------------------------------------------+ Best States ------------- Heat Dissipation 102 Coolant Potential 120 Energy Generation 52 Energy Capacity 1050 Matter Stores 300 Matter Capacity 300 Sight Range 22 Robot Scan Range 20 Terrain Scan Density 10 Power Amplification 30 Armor Coverage 450 Resistance: EX 50 Resistance: EM 75 Power Shielding 66 Evasion (%) 62 Targeting Accuracy 12 Target Analysis 8 Core Analysis 6 Recoil Reduction 4 Item Schematics ----------------- None Robot Schematics ------------------ None Fabricated ------------ Nothing Repaired ---------- Lgt. Treads | 17% | -9/Materials Centrium Heavy Treads | 4% | -3/Research Studied --------- None Alien Tech Used ----------------- None Achievements -------------- Oh No You Don't! Preemptive Strike Challenges ------------ None Game ------ Seed NuclearGuidanceDisplacer Manual? 0 Play Time 02:17:17 Cumulative 84.5 hours Start 2026.04.18 @ 22:40:24 End 2026.04.19 @ 01:01:08 Sessions 1 Manual Loads 0 Difficulty Rogue Special Mode None Game No. 59 Rogue 59 Adventurer 0 Explorer 0 Win Type - Total 1 Types 1/0/0/0/0/0/0/0/0/0 Lore% 48 Gallery% 46 Achievement% 39 Wizard Run 0 Options --------- Layout 1 ASCII 0 Keyboard 0 Movement Mouse Keybinds 0 Fullscreen 1 Font 24/Smallcaps Map View 50x35 Zoom Use 0% Tactical HUD 1 Map Filters NONE Filters NONE Steam 1 RUN: 5be60daf-92a1-4047-901c-99ed632ce0b0